bitfinex/quotes_BTCUSD_20250204
["timestamp","ask_amount","ask_price","bid_price","bid_amount"]
[1738684568901,0.00022471,99404.0,99402.0,0.15]
[1738684569321,0.00022471,99404.0,99403.0,0.1509]
[1738684571457,0.00022471,99404.0,99403.0,0.25328506]
[1738684572718,0.00022471,99404.0,99402.0,0.15]
[1738684572719,0.01068308,99403.0,99402.0,0.15]
[1738684572877,0.01068308,99403.0,99402.0,0.40449408]
[1738684573082,0.01068308,99403.0,99402.0,0.40328706]
[1738684573286,0.01068308,99403.0,99402.0,0.41369441]
[1738684573810,0.01068308,99403.0,99402.0,0.43669441]
[1738684574023,0.00022471,99404.0,99402.0,0.43669441]
[1738684574024,7.9e-07,99404.0,99403.0,0.0699]
[1738684574245,7.9e-07,99404.0,99403.0,0.47439185]
[1738684574453,7.9e-07,99404.0,99403.0,0.49318506]
[1738684574660,0.08123188,99426.0,99425.0,0.300867]
[1738684574864,0.08123188,99426.0,99425.0,0.42625206]
[1738684575227,0.0001069,99438.0,99436.0,0.30085]
[1738684575653,0.0001069,99438.0,99437.0,0.300849]
[1738684575860,0.00024693,99438.0,99437.0,0.40323406]
[1738684576054,0.00024693,99438.0,99437.0,0.300849]
[1738684576253,0.00024693,99438.0,99428.0,0.150861]
[1738684576512,0.00024693,99438.0,99425.0,0.01002714]
[1738684576513,0.00024693,99438.0,99410.0,0.20308873]
[1738684576805,0.0001069,99422.0,99421.0,0.023]
[1738684577093,0.0001069,99422.0,99421.0,0.67771306]
[1738684577463,0.0001069,99422.0,99421.0,0.552328]
[1738684578488,0.0001069,99422.0,99413.0,0.55213741]
[1738684578697,0.0001069,99422.0,99421.0,0.150873]
[1738684579089,0.0001069,99422.0,99421.0,0.15207988]
[1738684579294,0.0001069,99422.0,99421.0,0.150873]
[1738684580583,0.0001069,99422.0,99421.0,0.40325806]
[1738684581193,0.06258571,99445.0,99442.0,0.15084]
[1738684581408,0.06305395,99445.0,99444.0,0.150838]
[1738684581588,0.00046824,99445.0,99444.0,0.300838]
[1738684584602,0.05017471,99461.0,99444.0,0.15]
[1738684584808,0.150817,99458.0,99451.0,0.150826]
[1738684585008,0.150815,99460.0,99453.0,0.150823]
[1738684585203,0.201085,99461.0,99451.0,0.150827]
[1738684585473,0.150816,99459.0,99451.0,0.150826]
[1738684585677,1.5,99455.0,99451.0,0.150828]
[1738684585875,1.5,99455.0,99452.0,0.150825]
[1738684586179,1.5,99455.0,99450.0,0.201105]
[1738684586328,1.5,99455.0,99453.0,0.150824]
[1738684586751,1.5,99455.0,99444.0,0.15]
[1738684586752,1.5,99455.0,99445.0,0.201116]
[1738684586988,0.29390888,99484.0,99391.0,0.08986396]
[1738684586989,0.150843,99442.0,99434.0,0.150852]
[1738684587149,0.30348306,99454.0,99434.0,0.00046824]
[1738684587349,1.5,99435.0,99434.0,0.00046824]
[1738684587548,1.5,99435.0,99434.0,0.30132124]
[1738684587912,1.5,99435.0,99434.0,0.00046824]
[1738684588384,1.75334672,99435.0,99434.0,0.00046824]
[1738684588500,1.650852,99435.0,99434.0,0.00046824]
[1738684589331,1.5,99435.0,99434.0,0.00046824]
[1738684589539,1.5,99435.0,99434.0,0.15132124]
[1738684589739,1.5,99435.0,99434.0,0.00046824]
[1738684589959,1.5,99435.0,99434.0,0.15132124]
[1738684590763,0.000107,99454.0,99439.0,0.15]
[1738684590967,0.000107,99454.0,99449.0,0.15083]
[1738684591353,0.000107,99454.0,99450.0,0.150829]
[1738684591503,0.000107,99454.0,99439.0,0.15]
[1738684591909,0.000107,99454.0,99434.0,0.20160524]
[1738684591910,0.150828,99451.0,99435.0,0.150852]
[1738684592091,0.10249206,99454.0,99435.0,0.201136]
[1738684592328,0.000107,99454.0,99453.0,0.300825]
[1738684592559,0.000107,99454.0,99453.0,0.323825]
[1738684593688,0.000107,99454.0,99453.0,0.33403413]
[1738684594615,0.000107,99454.0,99453.0,0.43641919]
[1738684595368,0.000107,99454.0,99453.0,0.41341919]
[1738684595823,0.000107,99454.0,99453.0,0.43641919]
[1738684596795,0.000107,99454.0,99453.0,0.41341919]
[1738684599133,0.000107,99454.0,99453.0,0.150825]
[1738684602290,0.000107,99454.0,99452.0,0.150825]
[1738684602495,0.000107,99454.0,99453.0,0.150825]
[1738684602713,0.000107,99454.0,99451.0,0.150827]
[1738684602928,0.000107,99454.0,99453.0,0.150825]
[1738684605119,0.000107,99454.0,99453.0,0.300825]
[1738684605673,0.000107,99454.0,99453.0,0.40321006]
[1738684606115,0.000107,99454.0,99453.0,0.42621006]
[1738684606289,0.000107,99454.0,99453.0,0.47131006]
[1738684606495,0.000107,99454.0,99453.0,0.48168099]
[1738684607310,0.000107,99454.0,99453.0,0.5129079]
[1738684607691,0.0001069,99461.0,99453.0,0.5129079]
[1738684607692,9e-07,99461.0,99460.0,0.300814]
[1738684607892,9e-07,99461.0,99460.0,0.42619906]
[1738684608224,9e-07,99461.0,99460.0,0.53843193]
[1738684608765,0.01863207,99487.0,99486.0,0.323774]
[1738684608883,0.01863207,99487.0,99486.0,0.42615906]
[1738684609304,7e-08,99487.0,99486.0,0.54048268]
[1738684609529,0.02980037,99525.0,99489.0,0.32377]
[1738684609738,0.02980037,99525.0,99489.0,0.42615506]
[1738684610138,0.04014044,99490.0,99489.0,0.27538506]
[1738684610363,0.04014044,99490.0,99489.0,0.42615506]
[1738684611159,0.02114044,99490.0,99489.0,0.42615506]
[1738684613057,0.02114044,99490.0,99489.0,0.42275506]
[1738684615896,0.02124734,99490.0,99489.0,0.42275506]
[1738684616098,0.00224734,99490.0,99489.0,0.42275506]
[1738684618880,3.4e-07,99490.0,99489.0,0.42275506]
[1738684621048,0.06245693,99517.0,99516.0,0.150729]
[1738684621224,0.08123188,99507.0,99506.0,0.150744]
[1738684621424,0.00022471,99522.0,99492.0,0.023]
[1738684621770,0.00022471,99522.0,99495.0,0.15]
[1738684621771,0.0085332,99522.0,99495.0,0.15]
[1738684621915,0.200962,99521.0,99506.0,0.200991]
[1738684622116,0.200962,99521.0,99490.0,0.20308873]
[1738684622117,0.0785,99508.0,99486.0,0.01052134]
[1738684622345,0.15543506,99507.0,99460.0,0.20308873]
[1738684622519,0.15543506,99507.0,99461.0,0.10238506]
[1738684622719,0.15,99506.0,99461.0,0.10238506]
[1738684622946,1.5,99490.0,99461.0,0.10238506]
[1738684623191,1.5,99490.0,99488.0,0.150771]
[1738684623308,0.150761,99495.0,99480.0,0.20308873]
[1738684623509,0.10238506,99505.0,99470.0,0.20308873]
[1738684623737,0.201026,99490.0,99460.0,0.20308873]
[1738684623909,1.5,99493.0,99479.0,0.201046]
[1738684624110,0.10238506,99505.0,99462.0,0.15]
[1738684624315,0.10238506,99505.0,99479.0,0.00014044]
[1738684624538,0.150784,99480.0,99479.0,0.00014044]
[1738684624737,0.228484,99480.0,99479.0,0.00014044]
[1738684624939,0.39094746,99480.0,99479.0,0.00014044]
[1738684625164,0.40096227,99480.0,99479.0,0.00014044]
[1738684625335,1.90096227,99480.0,99479.0,0.00014044]
[1738684625538,2.05096227,99480.0,99479.0,0.00014044]
[1738684626354,2.05096227,99480.0,99449.0,0.00022449]
[1738684626355,0.023,99478.0,99449.0,0.00022449]
[1738684626568,0.225829,99450.0,99449.0,0.00022449]
[1738684626983,0.37451406,99450.0,99449.0,0.00022449]
[1738684627547,0.42276583,99450.0,99449.0,0.00022449]
[1738684628511,0.32038077,99450.0,99449.0,0.00022449]
[1738684628923,0.49603021,99450.0,99449.0,0.00022449]
[1738684629279,0.42276583,99450.0,99449.0,0.00022449]
[1738684630301,0.42276583,99450.0,99410.0,0.351186]
[1738684630302,0.27193683,99450.0,99411.0,0.150888]
[1738684630500,0.150876,99420.0,99410.0,0.150889]
[1738684630705,0.15,99447.0,99405.0,0.201197]
[1738684630907,0.150871,99423.0,99404.0,0.00069294]
[1738684631109,0.150871,99423.0,99412.0,0.150886]
[1738684631313,0.15,99445.0,99404.0,0.00069294]
[1738684631512,0.150853,99435.0,99410.0,0.20308873]
[1738684631722,0.0296934,99430.0,99411.0,0.00120696]
[1738684631925,0.0296934,99430.0,99428.0,0.150862]
[1738684632133,0.0296934,99430.0,99424.0,0.201156]
[1738684632374,0.0296934,99430.0,99404.0,0.00069294]
[1738684632582,0.0296934,99430.0,99410.0,0.20308873]
[1738684632785,0.0296934,99430.0,99423.0,0.201159]
[1738684632990,0.150848,99438.0,99428.0,0.150862]
[1738684633193,0.01850599,99443.0,99413.0,0.0012069]
[1738684633398,0.150843,99442.0,99432.0,0.150855]
[1738684633629,0.150848,99438.0,99427.0,0.150863]
[1738684633762,0.150844,99440.0,99430.0,0.150859]
[1738684633963,0.201109,99449.0,99422.0,0.15]
[1738684634196,0.10238506,99448.0,99434.0,0.150852]
[1738684634403,0.201112,99447.0,99404.0,0.0002247]
[1738684634604,0.402232,99445.0,99406.0,0.201195]
[1738684634818,0.10238506,99444.0,99409.0,0.15089]
[1738684635007,0.15,99443.0,99404.0,0.0002247]
[1738684635206,1.5,99431.0,99407.0,0.150894]
[1738684635556,0.150879,99418.0,99409.0,0.150891]
[1738684635767,0.10238506,99430.0,99407.0,0.00046824]
[1738684636017,0.150875,99420.0,99410.0,0.150888]
[1738684636251,1.5,99419.0,99410.0,0.150889]
[1738684636488,0.150879,99418.0,99410.0,0.150889]
[1738684636746,0.150879,99418.0,99407.0,0.00046824]
[1738684636747,0.150888,99412.0,99407.0,0.00046824]
[1738684636980,0.150884,99414.0,99407.0,0.00046824]
[1738684637517,0.150892,99409.0,99407.0,0.00046824]
[1738684639991,0.150883,99415.0,99407.0,0.15136124]
[1738684640239,0.079,99418.0,99408.0,0.00022428]
[1738684640454,0.150882,99415.0,99408.0,0.00022428]
[1738684640690,0.079,99418.0,99408.0,0.00022428]
[1738684640906,0.150885,99414.0,99408.0,0.00022428]
[1738684641137,0.15089,99410.0,99408.0,0.00022428]
[1738684641560,0.150888,99412.0,99408.0,0.00022428]
[1738684641738,0.0461,99417.0,99408.0,0.00022428]
[1738684641965,0.03365352,99448.0,99414.0,0.150883]
[1738684641966,0.150873,99422.0,99414.0,0.150883]
[1738684642238,0.150873,99422.0,99408.0,0.00022428]
[1738684642239,0.045,99435.0,99411.0,0.15]
[1738684642455,0.150855,99433.0,99425.0,0.150866]
[1738684642704,0.246138,99435.0,99423.0,0.150869]
[1738684642902,0.045,99435.0,99412.0,0.15]
[1738684643090,0.150854,99434.0,99426.0,0.150865]
[1738684643293,0.0104236,99436.0,99412.0,0.15]
[1738684643499,0.0104236,99436.0,99415.0,0.201176]
[1738684643500,0.02871496,99435.0,99415.0,0.201176]
[1738684643729,0.150848,99438.0,99430.0,0.150859]
[1738684643940,0.08565524,99441.0,99416.0,0.00120696]
[1738684644140,0.0826,99458.0,99430.0,0.201146]
[1738684644349,0.0826,99458.0,99431.0,0.10238506]
[1738684644552,1.5,99457.0,99432.0,0.15]
[1738684644702,1.5,99457.0,99446.0,0.201113]
[1738684644949,1.5,99457.0,99454.0,0.150822]
[1738684645126,1.5,99457.0,99440.0,0.20308873]
[1738684645340,0.201094,99456.0,99434.0,0.15]
[1738684645512,1.5,99457.0,99451.0,0.150826]
[1738684645887,1.5,99457.0,99437.0,0.201132]
[1738684646101,1.5,99457.0,99434.0,0.15]
[1738684646300,1.5,99457.0,99455.0,0.150821]
[1738684648738,1.5,99457.0,99456.0,0.15]
[1738684648906,0.0001069,99480.0,99458.0,0.15]
[1738684649108,0.150787,99478.0,99471.0,0.150796]
[1738684649319,1.5,99474.0,99472.0,0.150796]
[1738684651683,0.00024718,99480.0,99479.0,0.150785]
[1738684651859,0.00024718,99480.0,99479.0,0.15199125]
[1738684652056,0.00024718,99480.0,99479.0,0.150785]
[1738684652266,0.00024718,99480.0,99479.0,0.40437622]
[1738684652478,0.00024718,99480.0,99479.0,0.40317006]
[1738684653694,0.00024718,99480.0,99479.0,0.40417006]
[1738684654116,0.00024718,99480.0,99479.0,0.42717006]
[1738684654496,0.00024718,99480.0,99479.0,0.47377006]
[1738684655912,0.00024718,99480.0,99479.0,0.47277006]
[1738684656114,0.08123188,99517.0,99480.0,0.173]
[1738684656339,0.08123188,99507.0,99506.0,0.150744]
[1738684656786,0.08137224,99517.0,99491.0,0.173]
[1738684656946,0.00014036,99517.0,99492.0,0.10238506]
[1738684657185,1.5,99516.0,99493.0,0.15]
[1738684657387,0.10249472,99515.0,99493.0,0.15]
[1738684657603,0.150734,99513.0,99503.0,0.150748]
[1738684657814,0.15074,99509.0,99498.0,0.201007]
[1738684658008,0.00014036,99517.0,99491.0,0.001]
[1738684658193,0.150734,99513.0,99506.0,0.150743]
[1738684658395,0.200972,99516.0,99492.0,0.201021]
[1738684658639,0.150735,99513.0,99493.0,0.201019]
[1738684658936,0.00014036,99517.0,99491.0,0.001]
[1738684659234,0.00014036,99517.0,99515.0,0.150729]
[1738684659374,0.00014036,99517.0,99501.0,0.552758]
[1738684659576,0.01513108,99516.0,99502.0,0.201]
[1738684659801,0.01513108,99516.0,99514.0,0.150731]
[1738684660005,0.00014036,99517.0,99511.0,0.200981]
[1738684660207,0.00014036,99517.0,99491.0,0.001]
[1738684660411,0.200974,99515.0,99493.0,0.201017]
[1738684660610,0.150746,99505.0,99502.0,0.001]
[1738684660813,0.00014036,99517.0,99502.0,0.001]
[1738684660992,0.00014036,99517.0,99492.0,0.20102]
[1738684661219,0.150743,99507.0,99500.0,0.150752]
[1738684661424,0.00014036,99517.0,99482.0,0.10238506]
[1738684661425,0.150746,99505.0,99498.0,0.150755]
[1738684661850,1.5,99499.0,99486.0,0.15]
[1738684662176,0.150767,99491.0,99460.0,0.20308873]
[1738684662308,0.201018,99494.0,99469.0,0.01013995]
[1738684662505,0.150766,99492.0,99483.0,0.150779]
[1738684662797,1.5,99490.0,99471.0,0.15]
[1738684663005,1.54478303,99490.0,99473.0,0.15]
[1738684663208,1.54478303,99490.0,99472.0,0.10238506]
[1738684663209,0.150772,99488.0,99480.0,0.150783]
[1738684663390,1.650769,99490.0,99483.0,0.150778]
[1738684663629,1.5,99490.0,99469.0,0.001]
[1738684663802,0.150771,99489.0,99482.0,0.15078]
[1738684664052,0.150771,99489.0,99483.0,0.150779]
[1738684664265,1.5,99490.0,99489.0,0.15077]
[1738684664476,1.650769,99490.0,99484.0,0.150777]
[1738684664664,1.5,99490.0,99481.0,0.201042]
[1738684664867,1.5,99490.0,99485.0,0.150775]
[1738684665290,1.5,99490.0,99484.0,0.150777]
[1738684665434,1.5,99490.0,99471.0,0.15]
[1738684665634,1.5,99490.0,99484.0,0.150778]
[1738684665860,1.5001068,99490.0,99485.0,0.150775]
[1738684666607,1.5001068,99490.0,99489.0,0.001]
[1738684666812,1.5001068,99490.0,99484.0,0.150777]
[1738684667020,1.5001068,99490.0,99480.0,0.040223]
[1738684667226,1.5001068,99490.0,99400.0,0.41436396]
[1738684667227,1.5001068,99490.0,99485.0,0.001]
[1738684667518,1.6508758,99490.0,99484.0,0.150777]
[1738684667751,1.6508758,99490.0,99489.0,0.001]
[1738684668069,0.150775,99486.0,99480.0,0.150783]
[1738684668269,0.02393641,99486.0,99480.0,0.001]
[1738684668470,0.201027,99489.0,99480.0,0.001]
[1738684668867,0.150777,99485.0,99480.0,0.001]
[1738684669019,1.5001068,99490.0,99480.0,0.001]
[1738684669225,0.150775,99486.0,99480.0,0.001]
[1738684669435,1.5001068,99490.0,99480.0,0.001]
[1738684669638,0.08158892,99489.0,99480.0,0.001]
[1738684669807,0.150776,99486.0,99480.0,0.001]
[1738684670007,0.150776,99486.0,99479.0,0.150784]
[1738684670251,0.201029,99488.0,99479.0,0.150784]
[1738684670449,1.5001068,99490.0,99473.0,0.040223]
[1738684670804,1.5001068,99490.0,99475.0,0.201055]
[1738684670805,0.0001068,99490.0,99475.0,0.201055]
[1738684671009,0.0001068,99490.0,99485.0,0.150776]
[1738684671247,0.0001068,99490.0,99482.0,0.20104]
[1738684671487,0.0001068,99490.0,99484.0,0.201036]
[1738684671641,0.0001068,99490.0,99484.0,0.150776]
[1738684671857,0.0001068,99490.0,99485.0,0.150776]
[1738684672044,0.0001068,99490.0,99475.0,0.201055]
[1738684672266,0.150772,99488.0,99468.0,0.15]
[1738684672469,0.0001068,99490.0,99468.0,0.10238506]
[1738684672675,0.10260152,99490.0,99473.0,0.001]
[1738684672880,0.25336952,99490.0,99484.0,0.150777]
[1738684673112,0.0001068,99490.0,99487.0,0.150773]
[1738684673263,0.0001068,99490.0,99475.0,0.001]
[1738684673648,0.0001068,99490.0,99469.0,0.15]
[1738684673845,0.10249472,99489.0,99473.0,0.001]
[1738684674053,0.25326472,99489.0,99473.0,0.001]
[1738684674253,0.01865774,99488.0,99471.0,0.201063]
[1738684674552,0.01865774,99488.0,99482.0,0.15078]
[1738684674759,0.01865774,99488.0,99483.0,0.150779]
[1738684675009,0.16942974,99488.0,99482.0,0.15078]
[1738684675352,0.01865774,99488.0,99475.0,0.001]
[1738684675550,0.201033,99486.0,99475.0,0.001]
[1738684675914,0.150803,99467.0,99454.0,0.150823]
[1738684676127,0.150803,99467.0,99453.0,0.150823]
[1738684676273,1.650803,99467.0,99451.0,0.201103]
[1738684676478,1.650803,99467.0,99449.0,0.00022428]
[1738684676680,1.650803,99467.0,99453.0,0.150823]
[1738684676920,1.69934815,99467.0,99449.0,0.00022428]
[1738684677152,1.81216139,99467.0,99449.0,0.00022428]
[1738684677513,1.89206139,99467.0,99466.0,0.00114028]
[1738684677721,1.89206139,99467.0,99466.0,0.00014028]
[1738684677916,1.99455611,99467.0,99466.0,0.00014028]
[1738684679107,1.99455611,99467.0,99466.0,0.00114028]
[1738684679362,1.89206139,99467.0,99466.0,0.00114028]
[1738684679573,1.89206139,99467.0,99466.0,0.00014028]
[1738684679727,1.89406139,99467.0,99466.0,0.00014028]
[1738684679930,0.39406139,99467.0,99466.0,0.00014028]
[1738684680133,0.39506139,99467.0,99466.0,0.00014028]
[1738684680544,0.47845293,99467.0,99466.0,0.00014028]
[1738684681272,0.39306139,99467.0,99466.0,0.00014028]
[1738684681824,0.300829,99450.0,99449.0,0.00022428]
[1738684682028,0.53251406,99450.0,99449.0,0.00022428]
[1738684682188,1.89399406,99450.0,99449.0,0.00022428]
[1738684682510,1.650829,99450.0,99449.0,0.00022428]
[1738684682646,0.201093,99456.0,99449.0,0.00022428]
[1738684682876,0.19937415,99450.0,99449.0,0.00022428]
[1738684683085,0.05054515,99450.0,99449.0,0.15105528]
[1738684683285,0.05554515,99450.0,99449.0,0.15105528]
[1738684683483,0.05354515,99450.0,99449.0,0.15105528]
[1738684684139,0.001,99456.0,99449.0,0.00022428]
[1738684684801,0.001,99456.0,99453.0,0.150824]
[1738684685020,0.001,99456.0,99452.0,0.150825]
[1738684685238,0.001,99456.0,99454.0,0.150823]
[1738684685414,0.002,99456.0,99452.0,0.150825]
[1738684685628,0.201081,99462.0,99449.0,0.00022428]
[1738684685918,0.01863936,99455.0,99454.0,0.150823]
[1738684686349,1.51863936,99455.0,99452.0,0.150825]
[1738684686563,1.51863936,99455.0,99452.0,0.151825]
[1738684686771,1.51863936,99455.0,99453.0,0.150824]
[1738684686970,1.51863936,99455.0,99451.0,0.201104]
[1738684686971,1.5,99455.0,99451.0,0.201104]
[1738684687176,1.5,99455.0,99454.0,0.001]
[1738684688677,1.54845163,99455.0,99454.0,0.151823]
[1738684688871,1.54845163,99455.0,99454.0,0.150823]
[1738684689361,1.54845163,99455.0,99454.0,0.151823]
[1738684690192,0.04845163,99455.0,99454.0,0.151823]
[1738684690388,0.04845163,99455.0,99454.0,0.150823]
[1738684690607,0.04845163,99455.0,99454.0,0.151823]
[1738684690815,0.04845163,99455.0,99454.0,0.15304707]
[1738684691228,0.08123188,99469.0,99456.0,0.15082]
[1738684691430,0.08123188,99469.0,99454.0,0.00222407]
[1738684691431,0.201071,99467.0,99457.0,0.150818]
[1738684691668,0.150805,99466.0,99459.0,0.150814]
[1738684691982,0.150812,99462.0,99454.0,0.00122407]
[1738684692185,0.150821,99455.0,99454.0,0.00122407]
[1738684692545,1.650821,99455.0,99454.0,0.00122407]
[1738684692751,1.78302245,99455.0,99454.0,0.00122407]
[1738684692955,1.78302245,99455.0,99454.0,0.00022407]
[1738684693415,1.78302245,99455.0,99454.0,0.00122407]
[1738684693631,1.88551717,99455.0,99454.0,0.00122407]
[1738684693811,1.9041967,99455.0,99454.0,0.00022407]
[1738684694011,1.9041967,99455.0,99454.0,0.00122407]
[1738684694419,2.0541967,99455.0,99454.0,0.00122407]
[1738684694627,0.13573302,99440.0,99390.0,0.17598402]
[1738684694883,0.13573302,99440.0,99384.0,0.0818]
[1738684694884,0.20113,99438.0,99402.0,0.201201]
[1738684695104,0.20113,99438.0,99391.0,0.2928257]
[1738684695105,0.150891,99410.0,99391.0,0.201224]
[1738684695275,0.150891,99410.0,99394.0,0.201219]
[1738684695550,0.150891,99410.0,99383.0,0.20124]
[1738684695551,1.60238506,99409.0,99383.0,0.20124]
[1738684695753,1.60238506,99409.0,99381.0,0.08986396]
[1738684695959,1.60238506,99409.0,99408.0,0.00069252]
[1738684696299,1.70487978,99409.0,99408.0,0.00169252]
[1738684696506,1.76593979,99409.0,99408.0,0.00069252]
[1738684696706,1.76593979,99409.0,99408.0,0.00169252]
[1738684696916,1.97523117,99409.0,99408.0,0.00269252]
[1738684697091,0.502084,99408.0,99405.0,0.00055081]
[1738684697320,0.300896,99406.0,99405.0,0.00069084]
[1738684697452,0.40328106,99406.0,99405.0,0.00069084]
[1738684697656,1.75328106,99406.0,99405.0,0.00069084]
[1738684698226,1.5,99406.0,99405.0,0.00069084]
[1738684698515,0.06106001,99409.0,99405.0,0.00069084]
[1738684698663,0.06087701,99409.0,99407.0,0.150893]
[1738684699107,0.02979857,99421.0,99405.0,0.00069084]
[1738684699341,0.03751843,99421.0,99408.0,0.001]
[1738684699517,0.150884,99414.0,99406.0,0.150895]
[1738684699728,0.02979857,99421.0,99405.0,0.00069084]
[1738684699933,0.02979857,99421.0,99407.0,0.001]
[1738684700337,0.201172,99418.0,99408.0,0.150891]
[1738684700795,0.150881,99416.0,99409.0,0.150891]
[1738684701004,0.04844822,99417.0,99406.0,0.40239]
[1738684701220,0.04844822,99417.0,99416.0,0.150881]
[1738684701419,0.19932822,99417.0,99409.0,0.15089]
[1738684701574,0.04844822,99417.0,99405.0,0.00069084]
[1738684701824,0.02496152,99416.0,99405.0,0.00069084]
[1738684701979,0.02496152,99416.0,99408.0,0.001]
[1738684702178,0.15089,99410.0,99408.0,0.001]
[1738684702389,0.15089,99410.0,99405.0,0.00069084]
[1738684702627,0.150892,99409.0,99405.0,0.00069084]
[1738684702780,0.150889,99411.0,99405.0,0.00069084]
[1738684703178,0.01863393,99408.0,99405.0,0.00069084]
[1738684703835,0.01863393,99408.0,99405.0,0.15258684]
[1738684704207,0.01863393,99408.0,99405.0,0.00169084]
[1738684704552,0.01863393,99407.0,99405.0,0.00169084]
[1738684705118,0.01863393,99407.0,99405.0,0.00069084]
[1738684705334,0.01863393,99407.0,99405.0,0.00169084]
[1738684705756,0.01863393,99406.0,99405.0,0.00069084]
[1738684705960,0.01863393,99406.0,99405.0,0.00169084]
[1738684706780,0.01863393,99406.0,99405.0,0.1030759]
[1738684707126,0.01863393,99406.0,99405.0,0.00169084]
[1738684707738,0.17820948,99406.0,99405.0,0.00169084]
[1738684708177,1.67820948,99406.0,99405.0,0.00169084]
[1738684708379,1.70806723,99406.0,99405.0,0.00069084]
[1738684708603,1.65087674,99406.0,99405.0,0.00069084]
[1738684708819,1.65087674,99406.0,99405.0,0.00169084]
[1738684709016,1.54849168,99406.0,99405.0,0.00069084]
[1738684709434,1.55049168,99406.0,99405.0,0.00069084]
[1738684709636,0.05049168,99406.0,99405.0,0.00069084]
[1738684710715,0.04849168,99406.0,99405.0,0.00069084]
[1738684710927,0.01863393,99406.0,99405.0,0.00069084]
[1738684711115,0.01863393,99406.0,99405.0,0.15158784]
[1738684712333,0.12112865,99406.0,99405.0,0.00069084]
[1738684712570,0.16952993,99406.0,99405.0,0.00069084]
[1738684713245,0.30183281,99406.0,99405.0,0.00169084]
[1738684713489,0.30183281,99406.0,99405.0,0.00069084]
[1738684713725,0.30183281,99406.0,99405.0,0.00169084]
[1738684713726,0.19944775,99406.0,99405.0,0.00169084]
[1738684713943,0.25962993,99406.0,99405.0,0.00169084]
[1738684714549,0.36201499,99406.0,99405.0,0.00169084]
[1738684714762,0.37458258,99406.0,99405.0,0.00169084]
[1738684714964,0.37458258,99406.0,99405.0,0.00069084]
[1738684715301,0.3154004,99406.0,99405.0,0.00069084]
[1738684715501,0.21201534,99406.0,99405.0,0.00069084]
[1738684716006,0.24493297,99406.0,99405.0,0.00069084]
[1738684716185,0.24193297,99406.0,99405.0,0.00069084]
[1738684716654,0.24193297,99406.0,99405.0,0.00179764]
[1738684716997,0.30636367,99406.0,99405.0,0.00079764]
[1738684717173,1.80636367,99406.0,99405.0,0.00079764]
[1738684717386,1.76387845,99406.0,99405.0,0.00079764]
[1738684718128,1.76387845,99406.0,99405.0,0.00179764]
[1738684718521,1.76387845,99406.0,99405.0,0.00079764]
[1738684718726,1.76387845,99406.0,99405.0,0.00179764]
[1738684719091,1.76387845,99406.0,99405.0,0.00079764]
[1738684719478,1.76387845,99406.0,99405.0,0.00179764]
[1738684719677,1.76387845,99406.0,99405.0,0.00079764]
[1738684720031,1.76387845,99406.0,99405.0,0.00179764]
[1738684720290,1.69944775,99406.0,99405.0,0.00179764]
[1738684721313,1.69944775,99406.0,99405.0,0.00079764]
[1738684722231,1.69944775,99406.0,99405.0,0.00179764]
[1738684722453,1.69944775,99406.0,99405.0,0.00079764]
[1738684722864,1.69944775,99406.0,99405.0,0.00179764]
[1738684723105,1.69944775,99406.0,99405.0,0.00079764]
[1738684723106,1.54855175,99406.0,99405.0,0.00079764]
[1738684724328,1.51863393,99406.0,99405.0,0.00079764]
[1738684724544,1.77202465,99406.0,99405.0,0.00079764]
[1738684724696,1.66952993,99406.0,99405.0,0.00079764]
[1738684725110,1.66952993,99406.0,99405.0,0.00179764]
[1738684725310,1.66952993,99406.0,99405.0,0.00079764]
[1738684725708,1.67052993,99406.0,99405.0,0.00079764]
[1738684725909,1.66952993,99406.0,99405.0,0.00079764]
[1738684726284,1.68904168,99406.0,99405.0,0.00179764]
[1738684726487,1.79142674,99406.0,99405.0,0.00179764]
[1738684727131,1.86912674,99406.0,99405.0,0.00179764]
[1738684727333,1.91892674,99406.0,99405.0,0.00179764]
[1738684727764,1.89941499,99406.0,99405.0,0.00179764]
[1738684727962,1.90963368,99406.0,99405.0,0.00179764]
[1738684728166,1.90963368,99406.0,99405.0,0.00079764]
[1738684728370,0.150926,99386.0,99361.0,0.15]
[1738684728627,0.150926,99386.0,99385.0,0.00014042]
[1738684728628,0.26840366,99386.0,99385.0,0.00014042]
[1738684729224,1.76840366,99386.0,99385.0,0.00014042]
[1738684729458,1.75331106,99386.0,99385.0,0.00014042]
[1738684729672,1.75431106,99386.0,99385.0,0.00014042]
[1738684729871,1.80302315,99386.0,99385.0,0.00014042]
[1738684730072,1.80202315,99386.0,99385.0,0.00014042]
[1738684730286,1.80402315,99386.0,99385.0,0.00014042]
[1738684730493,1.90651787,99386.0,99385.0,0.00014042]
[1738684730996,1.80402315,99386.0,99385.0,0.00014042]
[1738684731179,1.81406827,99386.0,99385.0,0.00014042]
[1738684731586,1.81906827,99386.0,99385.0,0.00014042]
[1738684731791,1.79844227,99386.0,99360.0,0.00022407]
[1738684732000,0.20487978,99385.0,99360.0,0.00022407]
[1738684732175,0.150955,99367.0,99360.0,0.00022407]
[1738684732591,1.650955,99367.0,99360.0,0.00022407]
[1738684733025,1.650955,99367.0,99366.0,0.00122428]
[1738684733373,1.75334006,99367.0,99366.0,0.00022428]
[1738684733576,1.77197399,99367.0,99366.0,0.00022428]
[1738684734177,1.66958893,99367.0,99366.0,0.00022428]
[1738684734390,0.01863393,99367.0,99366.0,0.15118128]
[1738684735207,0.150938,99379.0,99372.0,0.150947]
[1738684735383,0.0352181,99378.0,99366.0,0.00122428]
[1738684735603,0.150955,99368.0,99366.0,0.00022428]
[1738684735900,0.15095,99371.0,99366.0,0.00122428]
[1738684736106,0.30363606,99379.0,99366.0,0.00022428]
[1738684736325,0.28245988,99390.0,99366.0,0.00022428]
[1738684736326,0.08123188,99390.0,99366.0,0.00022428]
[1738684736606,0.11151001,99389.0,99366.0,0.00022428]
[1738684736818,0.352193,99377.0,99366.0,0.00022428]
[1738684736961,1.5,99378.0,99366.0,0.00122428]
[1738684737165,0.11151001,99389.0,99366.0,0.00122428]
[1738684737381,0.402462,99388.0,99366.0,0.00122428]
[1738684737566,0.150955,99367.0,99366.0,0.00122428]
[1738684738169,0.150955,99367.0,99366.0,0.00022428]